[Event "Czech Open-Rapid 2022"]
[Site "Pardubice"]
[Date "2022.07.20"]
[Round "3.1"]
[White "Klimakovs, Sergejs"]
[Black "Korobov, Anton"]
[Result "0-1"]
[ECO "B30"]
[WhiteElo "2266"]
[BlackElo "2692"]
[Annotator "TA"]
[PlyCount "68"]
[EventDate "2022.07.20"]
[EventType "swiss"]
[EventCountry "CZE"]
[SourceTitle "playchess.com"]
[Source "ChessBase"]
[SourceQuality "1"]
[TimeControl "1200+10"]

{[%evp 19,68,27,25,23,27,35,41,26,31,20,39,32,74,44,47,27,29,24,28,25,15,0,0,-18,-15,-20,0,-12,18,-24,-21,-200,-170,-201,-197,-266,-285,-265,-270,-537,-233,-1781,-1710,-1605,-1455,-1916,-1855,-29989,-29990,-29996,-29997]} 1. e4 {[%emt 0:00:03]} c5 {[%emt 0:00:01]} 2. Nf3 {[%emt 0:00:02]} Nc6 {[%emt 0:00:01]} 3. Nc3 {[%emt 0:00:07]} d6 {[%emt 0:00:14]} 4. d4 {[%emt 0:00:06]} cxd4 {[%emt 0:00:02]} 5. Nxd4 {[%emt 0:00:01]} e6 {[%emt 0:00:03]} 6. g3 {[%emt 0:00:13]} a6 {[%emt 0:00:10]} 7. Bg2 {[%emt 0:00:04]} Qc7 {[%emt 0:00:14]} 8. O-O {[%emt 0:00:07]} Nf6 {[%emt 0:00:02]} 9. Be3 {[%emt 0:00:04]} Be7 {[%emt 0:00:07]} 10. Nxc6 {[%emt 0:00:30]} bxc6 {[%emt 0:00:05]} 11. Na4 {[%emt 0:00:01] B80: Sicilian Scheveningen: 6 g3 and 6 Be3, including English Attack.} Rb8 {[%emt 0:00:14]} 12. c4 {[%emt 0:00:09]} O-O {[%emt 0:00:12]} 13. Rc1 {[%emt 0:01:33] White is slightly better.} c5 {[%emt 0:00:18]} 14. Qe2 {[%emt 0:00:15] [#]} Nd7 $146 {[%emt 0:00:22][%cal Bf6d7,Bd7b8,Bb8c6,Bc6e5][%mdl 32]} ({Predecessor:} 14... Bb7 15. Nc3 Nd7 16. f4 Rfe8 17. Rcd1 Bf8 18. Rd3 Rbd8 19. Rfd1 Nb8 20. e5 Bxg2 21. exd6 Rxd6 22. Rxd6 Bxd6 23. Qxg2 {½-½ (30) Valujevs,G-Neukirch,D ICCF corr 1990}) 15. f4 {[%emt 0:02:39]} Rb4 {[%emt 0:00:46]} 16. Nc3 {[%emt 0:02:37]} Nb8 {[%emt 0:00:03]} 17. g4 {[%emt 0:01:26]} Nc6 {[%emt 0:00:04]} 18. b3 {[%emt 0:00:01]} Bf6 {[%emt 0:00:35]} 19. g5 {[%emt 0:00:29]} Bd4 {[%emt 0:00:02]} 20. Rf3 {[%emt 0:00:45]} f6 {[%emt 0:00:26]} 21. gxf6 {[%emt 0:03:12]} Rxf6 {[%emt 0:00:10]} 22. f5 {[%emt 0:00:08]} Ne5 {[%emt 0:00:37]} 23. Rg3 {[%emt 0:01:26]} Qf7 {[%emt 0:00:13]} (23... exf5 $2 24. Bxd4 cxd4 25. Nd5 $18) 24. Bxd4 {[%emt 0:01:17]} cxd4 {[%emt 0:00:03]} 25. fxe6 $2 {[%emt 0:02:09] This move loses the game for White.} (25. Nd1 $11 {and White has nothing to worry.}) 25... Bxe6 $19 {[%emt 0:00:13]} 26. Nd5 {[%emt 0:00:25]} Bxd5 {[%emt 0:00:22]} 27. cxd5 {[%emt 0:00:02] [#]} (27. Qd2 {keeps fighting.} Rb8 28. exd5) 27... Rb8 $1 {[%emt 0:00:34]} 28. Qxa6 {[%emt 0:00:04]} Rf8 {[%emt 0:00:09]} 29. Bh3 $2 {[%emt 0:00:21]} (29. b4 d3 30. Rxd3 Nxd3 31. Qxd3) 29... Kh8 {[%emt 0:00:12]} (29... Rh6 $2 30. Be6 Rxe6 31. dxe6 Qxe6 32. Qb7 $18) (29... Qh5 $142 30. Kh1 (30. Be6+ $2 Kh8 $19) 30... d3) 30. Be6 $2 {[%emt 0:02:06]} (30. Bg2) 30... Qh5 {[%emt 0:00:23]} 31. Bf5 {[%emt 0:02:32]} d3 {[%emt 0:00:24]} 32. Qa7 {[%emt 0:00:24]} g6 {[%emt 0:00:28] [#] ( -> ...d2)} 33. Rh3 {[%emt 0:00:00]} Qg5+ {[%emt 0:00:03]} 34. Kf2 {[%emt 0:00:17]} Rxf5+ {[%emt 0:00:04] Weighted Error Value: White=0.91/Black=0.24 (precise)} 0-1

[Event "Czech Open-Rapid 2022"]
[Site "Pardubice"]
[Date "2022.07.20"]
[Round "3.2"]
[White "Donchenko, Alexander"]
[Black "Goroshkov, Maksym"]
[Result "1-0"]
[ECO "A53"]
[WhiteElo "2640"]
[BlackElo "2240"]
[Annotator "TA"]
[PlyCount "79"]
[EventDate "2022.07.20"]
[EventType "swiss"]
[EventCountry "CZE"]
[SourceTitle "playchess.com"]
[Source "ChessBase"]
[SourceQuality "1"]
[TimeControl "1200+10"]

{[%evp 13,79,23,49,44,48,45,79,63,158,163,163,164,167,165,173,175,173,173,165,169,178,172,180,175,174,190,181,168,185,160,163,169,197,135,122,141,800,462,447,438,612,579,578,579,29987,29988,29988,29989,29989,29990,29990,29991,29991,29992,29992,29993,29993,29994,29994,29995,29995,29996,29996,29997,29997,29998,29998,29999]} 1. d4 {[%emt 0:00:01]} Nf6 {[%emt 0:00:02]} 2. c4 {[%emt 0:00:02]} d6 {[%emt 0:00:02]} 3. Nf3 {[%emt 0:00:06]} g6 {[%emt 0:00:01]} 4. g3 {[%emt 0:00:03]} Bg7 {[%emt 0:00:02]} 5. Bg2 {[%emt 0:00:02]} O-O {[%emt 0:00:02]} 6. Nc3 {[%emt 0:00:02]} c6 {[%emt 0:00:03]} 7. e4 {[%emt 0:00:04]} Bg4 {[%emt 0:00:04]} 8. h3 $1 {[%emt 0:00:08][%cal Bh2h3,Bh3h4][%mdl 32] 8.h3 scores better than 8.0-0. E62: King's Indian: Fianchetto: 6...c6 and Panno Variation (6...Nc6) without ...a6.} Bxf3 {[%emt 0:00:02]} 9. Bxf3 {[%emt 0:00:02]} e5 {[%emt 0:00:02] [#] aiming for ...exd4.} 10. d5 {[%emt 0:00:06] White is better.} c5 {[%emt 0:00:20]} ({Black should play} 10... a6 $14) 11. h4 $16 {[%emt 0:00:55] [#]} h6 $146 {[%emt 0:00:31]} ({Predecessor:} 11... h5 12. g4 hxg4 13. Bxg4 Nxg4 14. Qxg4 Nd7 15. Bg5 Qe8 16. O-O-O f5 17. Qh3 Nf6 18. Bxf6 Rxf6 {1-0 (26) Keymer,V (2591)-Ivic,V (2581) Chess.com INT 2020}) 12. g4 {[%emt 0:00:32]} Nh7 {[%emt 0:00:19]} 13. Be3 {[%emt 0:00:31]} a6 {[%emt 0:00:36]} 14. Qd2 {[%emt 0:00:35]} g5 {[%emt 0:00:01]} 15. hxg5 {[%emt 0:00:14]} Nxg5 {[%emt 0:00:02]} 16. Bg2 {[%emt 0:00:02]} Nd7 {[%emt 0:00:09]} 17. Ne2 {[%emt 0:00:08]} b5 {[%emt 0:00:04]} 18. Ng3 {[%emt 0:00:14]} f6 {[%emt 0:00:29]} 19. Nf5 {[%emt 0:00:09][%csl LRd6,LRh6]} Nb6 {[%emt 0:00:08]} 20. b3 {[%emt 0:00:52]} ({Not} 20. Nxh6+ Bxh6 21. Rxh6 Nxc4 $11) 20... bxc4 {[%emt 0:00:20]} 21. f3 {[%emt 0:02:08]} ({Resist} 21. Nxh6+ Bxh6 22. Rxh6 Kg7 $16) 21... a5 {[%emt 0:00:12]} 22. Kf2 {[%emt 0:00:11]} ({Don't play} 22. Nxh6+ Bxh6 23. Rxh6 Kg7 $16) 22... Rf7 {[%emt 0:00:49]} 23. Nxh6+ {[%emt 0:03:03]} ({Better is} 23. Bf1 $18) 23... Bxh6 {[%emt 0:00:03]} 24. Rxh6 {[%emt 0:00:03]} cxb3 $2 {[%emt 0:00:36][%mdl 8192] Loses the game.} (24... Rh7 $16 25. Rxh7 Nxh7) 25. Rah1 {[%emt 0:00:25][%mdl 64] Hoping for Bxg5. Zwischenzug} Nh7 {[%emt 0:00:01]} 26. axb3 {[%emt 0:01:01]} a4 {[%emt 0:00:01]} 27. g5 {[%emt 0:03:24]} fxg5 {[%emt 0:00:06] [#]} 28. Bh3 $1 {[%emt 0:00:04] Threatens to win with Be6.} Rg7 {[%emt 0:02:31]} 29. Be6+ {[%emt 0:00:22] White mates.} Kh8 {[%emt 0:00:02] [#]} 30. Bxg5 $1 {[%emt 0:00:03][%mdl 576] Pin} Qf8 {[%emt 0:00:58]} 31. Bf6 {[%emt 0:00:17]} Qxf6 {[%emt 0:00:00]} 32. Rxf6 {[%emt 0:00:03][%cal Bh6f6,Bf6f8,Bf8g8][%mdl 32]} axb3 {[%emt 0:00:02] [#]} 33. Qa5 $3 {[%emt 0:01:02][%mdl 512]} Rb7 {[%emt 0:00:20] [#]} 34. Qxa8+ $3 {[%emt 0:00:11]} Nxa8 {[%emt 0:00:01]} 35. Rf8+ {[%emt 0:00:03]} Kg7 {[%emt 0:00:01]} 36. Rg8+ {[%emt 0:00:02]} Kf6 {[%emt 0:00:03]} 37. Rh6+ {[%emt 0:00:02]} Ke7 {[%emt 0:00:01]} 38. Rxh7+ {[%emt 0:00:04]} Kf6 {[%emt 0:00:00]} 39. Rxb7 {[%emt 0:00:06][%csl Ge6][%cal Rb7f7]} Nc7 {[%emt 0:00:02]} 40. Rxc7 {[%emt 0:00:02] Weighted Error Value: White=0.26 (precise) /Black=0.46} 1-0

[Event "Czech Open-Rapid 2022"]
[Site "Pardubice"]
[Date "2022.07.20"]
[Round "3.3"]
[White "Sarkar, Justin"]
[Black "Harsha Bharathakoti"]
[Result "0-1"]
[ECO "C01"]
[WhiteElo "2346"]
[BlackElo "2547"]
[Annotator "TA"]
[PlyCount "90"]
[EventDate "2022.07.20"]
[EventType "swiss"]
[EventCountry "CZE"]
[SourceTitle "playchess.com"]
[Source "ChessBase"]
[SourceQuality "1"]
[TimeControl "1200+10"]

{[%evp 9,90,-18,19,0,0,0,0,-2,-8,-14,-20,-6,-8,-13,-8,-6,-25,-16,-22,-23,-22,-45,-51,-52,-44,-62,-61,-66,-57,-76,-79,-92,-70,-100,-100,-103,-83,-132,-112,-118,-113,-139,-129,-142,-91,-125,-122,-122,0,-118,-75,-76,-76,-112,-116,-145,-149,-184,-175,-192,-199,-203,-152,-231,-231,-219,-200,-261,-281,-376,-276,-373,-365,-356,-300,-320,0,-354,-309,-306,-278,-292,-280]} 1. e4 {[%emt 0:00:58]} e6 {[%emt 0:00:27]} 2. d4 {[%emt 0:00:05]} d5 {[%emt 0:00:02]} 3. exd5 {[%emt 0:00:12]} exd5 {[%emt 0:00:03]} 4. Bf4 {[%emt 0:00:03]} Nf6 {[%emt 0:00:35]} 5. Nf3 {[%emt 0:00:17]} Bg4 {[%emt 0:01:53]} 6. Be2 {[%emt 0:00:26] C01: French: Exchange Variation.} Bd6 {[%emt 0:00:27]} 7. Bxd6 {[%emt 0:00:32]} Qxd6 {[%emt 0:00:02]} 8. O-O {[%emt 0:00:09] The position is equal.} O-O {[%emt 0:00:15]} 9. Ne5 {[%emt 0:00:50]} Bxe2 {[%emt 0:00:32]} 10. Qxe2 {[%emt 0:00:03] [#]} Re8 $146 {[%emt 0:00:49] next ...Nc6 is good for Black.} ({Predecessor:} 10... Nbd7 11. Nxd7 Qxd7 12. Qd3 Rfe8 13. Nd2 c6 14. Rfe1 Qc7 15. Nf3 Ne4 16. c3 Qf4 {1-0 (45) Gonzalez Alonso,M (1886)-Rossell Rodriguez,O (1917) Barcelona 2015}) 11. Qb5 {[%emt 0:00:40]} Nc6 {[%emt 0:05:08]} 12. Nxc6 {[%emt 0:00:53]} bxc6 {[%emt 0:00:02]} 13. Qd3 $1 {[%emt 0:00:07]} Rab8 {[%emt 0:00:24]} 14. b3 {[%emt 0:01:01]} Ng4 {[%emt 0:02:16][%csl Gg4][%cal Rd6h2]} 15. Qg3 {[%emt 0:00:26]} Qxg3 $40 {[%emt 0:00:16][%mdl 128] Black mounts an attack.} 16. hxg3 {[%emt 0:00:03]} Re2 {[%emt 0:00:01]} 17. Nc3 {[%emt 0:00:12]} Rxc2 {[%emt 0:00:13]} 18. Rac1 {[%emt 0:00:03]} Rd2 {[%emt 0:00:06]} 19. Rcd1 {[%emt 0:00:12]} Rxd1 {[%emt 0:00:07] Black is more active.} 20. Rxd1 $17 {[%emt 0:00:03][%mdl 4096] Endgame KRN-KRN} Kf8 {[%emt 0:00:58]} 21. Rc1 {[%emt 0:01:02]} Ke7 {[%emt 0:00:10]} 22. f3 {[%emt 0:00:04]} Nf6 {[%emt 0:00:07]} 23. Kf2 {[%emt 0:00:07]} ({Better is} 23. g4) 23... Kd6 {[%emt 0:00:02]} 24. g4 {[%emt 0:00:56]} h6 {[%emt 0:00:33]} 25. Ke3 {[%emt 0:00:40]} Nd7 {[%emt 0:00:12]} 26. Na4 {[%emt 0:00:45]} Rb5 {[%emt 0:00:14]} ({Black should try} 26... Nf8 27. Nc5 Ne6 28. Nxe6 fxe6) 27. Nc3 {[%emt 0:00:04]} Rb4 {[%emt 0:00:11]} 28. Na4 {[%emt 0:00:26]} Rb5 {[%emt 0:01:19]} 29. Nc3 $1 {[%emt 0:00:03]} Ra5 {[%emt 0:00:03]} 30. a4 {[%emt 0:00:23]} Ra6 {[%emt 0:00:01]} 31. b4 {[%emt 0:00:37]} Rb6 {[%emt 0:00:01]} 32. Rb1 {[%emt 0:00:19] [#]} a5 $1 {[%emt 0:00:35]} 33. bxa5 {[%emt 0:00:44]} Ra6 {[%emt 0:00:27]} 34. Kd3 {[%emt 0:02:22]} Rxa5 {[%emt 0:00:02]} 35. Kc2 {[%emt 0:00:04]} Nb6 {[%emt 0:01:23]} 36. Kb3 {[%emt 0:00:24] [#]} (36. Ra1 $17) 36... Nc4 $1 $19 {[%emt 0:00:06] White must now prevent ...Nd2+.} 37. Re1 {[%emt 0:00:12]} Ra8 {[%emt 0:00:02] Inhibits Re8. Strongly threatening ...Rb8+.} 38. Re2 {[%emt 0:00:30]} Rb8+ {[%emt 0:00:09]} 39. Ka2 {[%emt 0:00:06]} Kd7 {[%emt 0:00:52]} 40. Nd1 {[%emt 0:00:45]} Rb4 {[%emt 0:01:24]} 41. Nc3 {[%emt 0:00:02]} Nb6 {[%emt 0:00:03]} 42. Rd2 {[%emt 0:00:12]} Nc4 {[%emt 0:00:58]} ({Stronger than} 42... Nxa4 43. Ka3 Rxd4 44. Rxd4 Nxc3 45. Rb4 $17) 43. Re2 {[%emt 0:00:03]} Na5 {[%emt 0:00:02]} 44. Rd2 {[%emt 0:00:19]} Kd6 {[%emt 0:00:47]} 45. Rd3 {[%emt 0:00:20]} Nc4 {[%emt 0:00:03] Weighted Error Value: White=0.17 (very precise) /Black=0.21 (precise)} 0-1

[Event "Czech Open-Rapid 2022"]
[Site "Pardubice"]
[Date "2022.07.20"]
[Round "3.5"]
[White "Silar, Lubomir"]
[Black "Plat, Vojtech"]
[Result "1/2-1/2"]
[ECO "B07"]
[WhiteElo "1993"]
[BlackElo "2554"]
[Annotator "TA"]
[PlyCount "105"]
[EventDate "2022.07.20"]
[EventType "swiss"]
[EventCountry "CZE"]
[SourceTitle "playchess.com"]
[Source "ChessBase"]
[SourceQuality "1"]
[TimeControl "1200+10"]

{[%evp 11,105,25,26,-8,-11,-22,-17,-36,-23,-60,-64,-96,-92,-111,-93,-103,-104,-109,-113,-110,-109,-118,-126,-125,-114,-142,-103,-137,-116,-137,-126,-129,-136,-143,-135,-135,-135,-121,-124,-164,-92,-90,-95,-105,-97,-98,-90,-90,-90,-90,0,0,0,-83,-93,-216,-60,-64,0,0,0,0,0,0,0,0,0,0,0,0,0,0,0,0,0,0,0,0,0,0,0,0,0,0,0,0,29970,29970,29970,29971,29971,29972,29971,0,0,0]} 1. d4 {[%emt 0:00:03]} d6 {[%emt 0:00:01]} 2. e4 {[%emt 0:00:04]} Nf6 {[%emt 0:00:01]} 3. Nc3 {[%emt 0:00:02]} e5 {[%emt 0:00:01]} 4. dxe5 {[%emt 0:00:07]} dxe5 {[%emt 0:00:01]} 5. Qxd8+ {[%emt 0:00:02]} Kxd8 {[%emt 0:00:01]} 6. Bg5 {[%emt 0:00:19]} Be6 {[%emt 0:00:01]} 7. Bd3 {[%emt 0:00:16] B07: Pirc Defence: Miscellaneous Systems.} (7. O-O-O+ {feels hotter.} Nbd7 8. f4 exf4 9. Nf3) 7... Nbd7 {[%emt 0:00:03]} 8. Nge2 {[%emt 0:00:02] [#]} c6 $146 {[%emt 0:00:10]} ({Predecessor:} 8... h6 9. Bh4 g5 10. Bg3 Bb4 11. a3 Bxc3+ 12. Nxc3 c6 13. f3 Ke7 14. O-O-O Ne8 {½-½ (41) Murray,J (2031)-Roberts,P (2201) Cobo Bay 2005}) 9. O-O {[%emt 0:00:12]} h6 {[%emt 0:00:05]} 10. Bxf6+ {[%emt 0:00:44]} Nxf6 {[%emt 0:00:09]} 11. Rad1 {[%emt 0:00:19]} Kc7 {[%emt 0:00:01]} 12. h3 {[%emt 0:00:25]} Bc5 {[%emt 0:00:06]} 13. Na4 {[%emt 0:00:11]} Be7 {[%emt 0:00:01]} 14. b3 {[%emt 0:00:43]} b5 {[%emt 0:00:13]} 15. Nac3 {[%emt 0:00:10]} Bc5 {[%emt 0:00:10]} 16. Kh1 {[%emt 0:00:21]} g5 {[%emt 0:00:25]} 17. Ng3 {[%emt 0:00:12]} h5 {[%emt 0:00:10][%cal Bh6h5,Bh5h4][%mdl 32]} 18. Nf5 {[%emt 0:00:05]} h4 {[%emt 0:00:34]} 19. f3 {[%emt 0:00:15]} Rad8 {[%emt 0:00:09]} 20. a4 {[%emt 0:01:15]} a6 {[%emt 0:00:32]} 21. axb5 {[%emt 0:00:33]} axb5 {[%emt 0:00:01]} 22. Ne2 {[%emt 0:00:38]} Ra8 {[%emt 0:01:13]} 23. Ra1 {[%emt 0:00:17]} Rhd8 {[%emt 0:00:08]} 24. Rxa8 Rxa8 {[%emt 0:00:01]} 25. g3 {[%emt 0:00:37] [#]} Nh5 {[%emt 0:00:53]} (25... hxg3 $1 $19 {aiming for ...Nh5.} 26. Nexg3 Nd7) 26. gxh4 $17 {[%emt 0:00:33]} gxh4 {[%emt 0:00:00]} 27. Rd1 {[%emt 0:02:16]} Rg8 {[%emt 0:00:32]} 28. Ra1 {[%emt 0:00:12]} Bxf5 {[%emt 0:01:34]} 29. exf5 {[%emt 0:00:02]} Be3 {[%emt 0:00:01]} 30. Be4 {[%emt 0:01:35]} Ng3+ {[%emt 0:00:54]} (30... Nf6 $17 31. Rd1 Bf2) 31. Nxg3 $11 {[%emt 0:00:03]} Rxg3 {[%emt 0:00:01][%mdl 4096] Endgame KRB-KRB} 32. Kh2 {[%emt 0:00:38]} (32. Ra6 $11) 32... Bf4 $17 {[%emt 0:00:14]} 33. Ra6 {[%emt 0:02:39] [#]} (33. Ra7+ $2 Kb6 34. Rd7 Rxf3+ 35. Kg2 Re3 $19) (33. Kh1 $17) 33... Rxf3+ $2 {[%emt 0:00:02]} (33... Kb7 $1 $19 {[%cal Rb7a6]} 34. Ra1 Rxf3+ 35. Kg2 Rg3+ 36. Kf1 Rxh3) 34. Kg2 $15 {[%emt 0:00:03]} Rc3 {[%emt 0:00:01]} ({Black should try} 34... Rg3+ $15 35. Kf1 Rxh3 36. Rxc6+ Kd7) 35. Ra7+ $11 {[%emt 0:00:18]} Kb6 {[%emt 0:00:01]} 36. Rxf7 {[%emt 0:00:02]} Re3 {[%emt 0:00:01]} 37. Bf3 {[%emt 0:00:38]} e4 {[%emt 0:00:00]} 38. Bxe4 {[%emt 0:01:28]} Rxe4 {[%emt 0:00:15] KRB-KR} 39. Kf3 {[%emt 0:00:01]} Rb4 {[%emt 0:00:12]} (39... Rd4 $5 40. c3 Rd3+ 41. Kxf4 Rxh3 $14) 40. c3 {[%emt 0:00:04]} Rxb3 {[%emt 0:00:01]} 41. Kxf4 {[%emt 0:00:01] And now f6 would win.} Rxc3 {[%emt 0:00:00] KR-KR} 42. f6 {[%emt 0:01:13]} Rxh3 {[%emt 0:01:37]} 43. Re7 {[%emt 0:00:37] f7 would kill now.} Rh1 {[%emt 0:00:07] Strongly threatening ...h3.} 44. Re3 {[%emt 0:00:03] Threatening mate with f7.} Rf1+ {[%emt 0:00:42]} 45. Rf3 $1 {[%emt 0:00:07]} Ra1 {[%emt 0:00:02]} (45... Rxf3+ $2 46. Kxf3 h3 47. f7 $18) 46. f7 {[%emt 0:00:32]} Ra8 {[%emt 0:00:02] Threatens to win with ...Rf8.} 47. Ke5 $1 {[%emt 0:00:15]} Rf8 {[%emt 0:00:02] White must now prevent ...b4.} 48. Ke6 {[%emt 0:00:02]} c5 $2 {[%emt 0:01:09][%mdl 8192]} (48... b4 $11 49. Ke7 Rxf7+ 50. Kxf7 Kb5) 49. Ke7 {[%emt 0:00:36]} Rxf7+ {[%emt 0:00:37]} 50. Kxf7 {[%emt 0:00:22]} c4 {[%emt 0:00:08]} 51. Ke6 {[%emt 0:00:53]} Kc5 {[%emt 0:01:49]} 52. Rf5+ $2 {[%emt 0:02:29]} (52. Ke5 {mates} b4 53. Rf8 c3 54. Rc8+ Kb6 55. Kd4 h3 56. Kd3 Kb7 57. Rc4) 52... Kd4 $1 {[%emt 0:01:53]} 53. Rxb5 {[%emt 0:00:25] Weighted Error Value: White=0.22 (precise) /Black=0.28 (precise)} 1/2-1/2

[Event "Czech Open-Rapid 2022"]
[Site "Pardubice"]
[Date "2022.07.20"]
[Round "3.6"]
[White "Stocek, Jiri"]
[Black "Aradhya, Garg"]
[Result "0-1"]
[ECO "A28"]
[WhiteElo "2548"]
[BlackElo "2229"]
[Annotator "TA"]
[PlyCount "76"]
[EventDate "2022.07.20"]
[EventType "swiss"]
[EventCountry "CZE"]
[SourceTitle "playchess.com"]
[Source "ChessBase"]
[SourceQuality "1"]
[TimeControl "1200+10"]

{[%evp 14,76,17,18,27,7,18,0,0,0,0,-2,0,-11,-9,-17,0,-19,0,0,0,0,0,-35,3,-37,-26,-50,5,10,3,16,11,-26,-33,-113,-121,-437,-445,-440,-439,-492,-486,-595,-556,-657,-613,-698,-694,-722,-651,-664,-552,-623,-615,-629,-627,-609,-604,-635,-634,-740,-733,-607,-497]} 1. c4 {[%emt 0:00:04]} e5 {[%emt 0:00:01]} 2. Nc3 {[%emt 0:00:02]} Nf6 {[%emt 0:00:02]} 3. Nf3 {[%emt 0:00:11]} Nc6 {[%emt 0:00:01]} 4. e3 {[%emt 0:00:02]} d5 {[%emt 0:00:45]} 5. cxd5 {[%emt 0:00:03]} Nxd5 {[%emt 0:00:01]} 6. Bb5 {[%emt 0:00:03]} Nxc3 {[%emt 0:00:02]} 7. bxc3 {[%emt 0:00:04]} Bd6 {[%emt 0:00:02]} 8. d4 {[%emt 0:00:22]} O-O {[%emt 0:00:19] [#] Recently 8...Bd7 got a lot of attention. A28: English Opening: Four Knights Variation.} 9. a4 $146 {[%emt 0:00:46]} ({Predecessor:} 9. Bxc6 bxc6 10. dxe5 Bc5 11. Qxd8 Rxd8 12. O-O Ba6 13. Re1 Rab8 14. Nd4 Rb6 15. a4 Bc4 16. a5 {1-0 (49) Prilleltensky,M (2136)-Player,E (2172) Chess.com INT 2021}) 9... Qf6 {[%emt 0:00:09]} 10. Ba3 {[%emt 0:01:07]} Bg4 {[%emt 0:00:36] The position is equal.} 11. h3 {[%emt 0:02:04]} Bh5 {[%emt 0:00:02]} 12. Bxd6 {[%emt 0:00:27]} cxd6 {[%emt 0:00:05]} 13. Be2 {[%emt 0:00:06]} Na5 {[%emt 0:00:21]} 14. O-O {[%emt 0:00:47]} Rac8 {[%emt 0:00:13]} 15. Nd2 {[%emt 0:00:41]} Bg6 {[%emt 0:00:01]} 16. Nb3 {[%emt 0:01:13]} Nc4 {[%emt 0:00:03]} 17. a5 {[%emt 0:00:20]} Rc7 {[%emt 0:02:10]} 18. Bf3 {[%emt 0:00:26]} Qg5 {[%emt 0:00:48]} 19. Ra2 {[%emt 0:02:21]} e4 {[%emt 0:00:31]} 20. Be2 {[%emt 0:01:01]} Qd5 {[%emt 0:00:02]} (20... Bf5 $15 21. Bg4 Bxg4 22. Qxg4 Qd5) 21. Qc2 $11 {[%emt 0:00:30]} Rfc8 {[%emt 0:00:08][%cal Oc4e3] White must now prevent ...Nxe3!} 22. Rc1 {[%emt 0:00:11]} Bf5 {[%emt 0:00:32][%cal Bg6f5,Bf5e6,Be6b3][%mdl 32]} 23. h4 {[%emt 0:00:35]} Be6 {[%emt 0:00:06][%cal Oc4e3]} 24. Bxc4 {[%emt 0:02:24]} (24. Ra4 $1 $15) 24... Qxc4 $17 {[%emt 0:00:22]} ({But not} 24... Rxc4 $6 25. Raa1 $15) 25. Ra3 {[%emt 0:00:06][%mdl 8192] [#] Now White is beyond hope.} (25. Rb2 $17 {is tougher.}) 25... Qxc3 $19 {[%emt 0:00:36] Black is clearly winning.} 26. Qxe4 {[%emt 0:01:52]} Qb4 {[%emt 0:00:40]} ({Don't go for} 26... Qxb3 $2 27. Rxb3 Rxc1+ 28. Kh2 Bxb3 29. Qxb7 $19) 27. Rca1 {[%emt 0:04:10]} Bxb3 {[%emt 0:00:09]} 28. Kh2 {[%emt 0:00:12]} Be6 {[%emt 0:00:23]} 29. a6 {[%emt 0:00:10]} d5 {[%emt 0:00:37]} 30. Qf4 {[%emt 0:00:04]} b5 {[%emt 0:00:02]} 31. R3a2 {[%emt 0:00:19]} Rc6 {[%emt 0:00:06]} 32. Rd1 {[%emt 0:00:24]} Qd6 {[%emt 0:00:02]} 33. Kg3 {[%emt 0:00:04]} Qxf4+ {[%emt 0:00:06]} 34. Kxf4 {[%emt 0:00:01]} Rc2 {[%emt 0:00:18]} 35. Rxc2 {[%emt 0:00:07]} Rxc2 {[%emt 0:00:01]} 36. Rb1 {[%emt 0:00:01]} Rxf2+ {[%emt 0:00:07]} 37. Ke5 {[%emt 0:00:02]} h5 {[%emt 0:00:11]} 38. Rxb5 {[%emt 0:00:02]} Ra2 {[%emt 0:00:04] Weighted Error Value: White=0.48/Black=0.18 (very precise)} 0-1